{"text_format":"1","workbook":"xlsx","n_sheets":2,"sheets":["Vent","Juin"],"not_rendered":{"charts":2,"images":0,"macros":0,"external_links":0,"defined_names":0,"comments":0,"pivot_tables":0},"unopened":[],"bounds":{"document_bytes":16777216,"sheet_cells":100000,"rows_first":2000,"rows_last":500,"rows_between":2000,"halvings":0,"cell_chars":16384,"cell_head_chars":4096},"cells_cut":0,"cells_raw":0,"read":"whole","date_system":"1900"}

{"sheet":"Vent","index":0,"n_rows":52,"n_cols":28,"rows_kept":52,"cut":false,"hidden":false,"merged":[]}
[{"$f":"Juin!C5","v":"Juin"}]
[]
[]
[null,null,null,null,null,null,null,null,null,"Jour",null,"Maxi pluie"]
[null,null,null,null,null,null,null,null,null,{"$f":"VLOOKUP(Z37,Z5:AB36,2,0)","v":"12"},null,{"$f":"Z37","v":24.5},null,null,null,null,null,null,null,null,null,null,null,null,null,"Maxi"]
[null,null,null,null,null,null,null,null,null,null,null,null,null,null,null,null,null,null,null,null,null,null,null,null,null,{"$f":"INDIRECT($A$1&\"!$AR11\")","v":14.4},"1",{"$f":"IF(OFFSET(Juin!AR11,(ROW(AR11)-11),0)=0,NA(),OFFSET(Juin!AR11,(ROW(AR11)-11),0))","v":14.4}]
[null,null,null,null,null,null,null,null,null,null,null,null,null,null,null,null,null,null,null,null,null,null,null,null,null,{"$f":"INDIRECT($A$1&\"!$AR13\")","v":14},"2",{"$f":"IF(OFFSET(Juin!AR12,(ROW(AR12)-11),0)=0,NA(),OFFSET(Juin!AR12,(ROW(AR12)-11),0))","v":14}]
[null,null,null,null,null,null,null,null,null,null,null,null,null,null,null,null,null,null,null,null,null,null,null,null,null,{"$f":"INDIRECT($A$1&\"!$AR15\")","v":7.2},"3",{"$f":"IF(OFFSET(Juin!AR13,(ROW(AR13)-11),0)=0,NA(),OFFSET(Juin!AR13,(ROW(AR13)-11),0))","v":7.2}]
[null,null,null,null,null,null,null,null,null,null,null,null,null,null,null,null,null,null,null,null,null,null,null,null,null,{"$f":"INDIRECT($A$1&\"!$AR17\")","v":9.6999999999999993},"4",{"$f":"IF(OFFSET(Juin!AR14,(ROW(AR14)-11),0)=0,NA(),OFFSET(Juin!AR14,(ROW(AR14)-11),0))","v":9.6999999999999993}]
[null,null,null,null,null,null,null,null,null,null,null,null,null,null,null,null,null,null,null,null,null,null,null,null,null,{"$f":"INDIRECT($A$1&\"!$AR19\")","v":9},"5",{"$f":"IF(OFFSET(Juin!AR15,(ROW(AR15)-11),0)=0,NA(),OFFSET(Juin!AR15,(ROW(AR15)-11),0))","v":9}]
[null,null,null,null,null,null,null,null,null,null,null,null,null,null,null,null,null,null,null,null,null,null,null,null,null,{"$f":"INDIRECT($A$1&\"!$AR21\")","v":14.8},"6",{"$f":"IF(OFFSET(Juin!AR16,(ROW(AR16)-11),0)=0,NA(),OFFSET(Juin!AR16,(ROW(AR16)-11),0))","v":14.8}]
[null,null,null,null,null,null,null,null,null,null,null,null,null,null,null,null,null,null,null,null,null,null,null,null,null,{"$f":"INDIRECT($A$1&\"!$AR23\")","v":13.3},"7",{"$f":"IF(OFFSET(Juin!AR17,(ROW(AR17)-11),0)=0,NA(),OFFSET(Juin!AR17,(ROW(AR17)-11),0))","v":13.3}]
[null,null,null,null,null,null,null,null,null,null,null,null,null,null,null,null,null,null,null,null,null,null,null,null,null,{"$f":"INDIRECT($A$1&\"!$AR25\")","v":9},"8",{"$f":"IF(OFFSET(Juin!AR18,(ROW(AR18)-11),0)=0,NA(),OFFSET(Juin!AR18,(ROW(AR18)-11),0))","v":9}]
[null,null,null,null,null,null,null,null,null,null,null,null,null,null,null,null,null,null,null,null,null,null,null,null,null,{"$f":"INDIRECT($A$1&\"!$AR27\")","v":10.8},"9",{"$f":"IF(OFFSET(Juin!AR19,(ROW(AR19)-11),0)=0,NA(),OFFSET(Juin!AR19,(ROW(AR19)-11),0))","v":10.8}]
[null,null,null,null,null,null,null,null,null,null,null,null,null,null,null,null,null,null,null,null,null,null,null,null,null,{"$f":"INDIRECT($A$1&\"!$AR29\")","v":15.1},"10",{"$f":"IF(OFFSET(Juin!AR20,(ROW(AR20)-11),0)=0,NA(),OFFSET(Juin!AR20,(ROW(AR20)-11),0))","v":15.1}]
[null,null,null,null,null,null,null,null,null,null,null,null,null,null,null,null,null,null,null,null,null,null,null,null,null,{"$f":"INDIRECT($A$1&\"!$AR31\")","v":19.100000000000001},"11",{"$f":"IF(OFFSET(Juin!AR21,(ROW(AR21)-11),0)=0,NA(),OFFSET(Juin!AR21,(ROW(AR21)-11),0))","v":19.100000000000001}]
[null,null,null,null,null,null,null,null,null,null,null,null,null,null,null,null,null,null,null,null,null,null,null,null,null,{"$f":"INDIRECT($A$1&\"!$AR33\")","v":24.5},"12",{"$f":"IF(OFFSET(Juin!AR22,(ROW(AR22)-11),0)=0,NA(),OFFSET(Juin!AR22,(ROW(AR22)-11),0))","v":24.5}]
[null,null,null,null,null,null,null,null,null,null,null,null,null,null,null,null,null,null,null,null,null,null,null,null,null,{"$f":"INDIRECT($A$1&\"!$AR35\")","v":21.6},"13",{"$f":"IF(OFFSET(Juin!AR23,(ROW(AR23)-11),0)=0,NA(),OFFSET(Juin!AR23,(ROW(AR23)-11),0))","v":21.6}]
[null,null,null,null,null,null,null,null,null,null,null,null,null,null,null,null,null,null,null,null,null,null,null,null,null,{"$f":"INDIRECT($A$1&\"!$AR37\")","v":21.2},"14",{"$f":"IF(OFFSET(Juin!AR24,(ROW(AR24)-11),0)=0,NA(),OFFSET(Juin!AR24,(ROW(AR24)-11),0))","v":21.2}]
[null,null,null,null,null,null,null,null,null,null,null,null,null,null,null,null,null,null,null,null,null,null,null,null,null,{"$f":"INDIRECT($A$1&\"!$AR39\")","v":21.6},"15",{"$f":"IF(OFFSET(Juin!AR25,(ROW(AR25)-11),0)=0,NA(),OFFSET(Juin!AR25,(ROW(AR25)-11),0))","v":21.6}]
[null,null,null,null,null,null,null,null,null,null,null,null,null,null,null,null,null,null,null,null,null,null,null,null,null,{"$f":"INDIRECT($A$1&\"!$AR41\")","v":18.399999999999999},"16",{"$f":"IF(OFFSET(Juin!AR26,(ROW(AR26)-11),0)=0,NA(),OFFSET(Juin!AR26,(ROW(AR26)-11),0))","v":18.399999999999999}]
[null,null,null,null,null,null,null,null,null,null,null,null,null,null,null,null,null,null,null,null,null,null,null,null,null,{"$f":"INDIRECT($A$1&\"!$AR43\")","v":20.5},"17",{"$f":"IF(OFFSET(Juin!AR27,(ROW(AR27)-11),0)=0,NA(),OFFSET(Juin!AR27,(ROW(AR27)-11),0))","v":20.5}]
[null,null,null,null,null,null,null,null,null,null,null,null,null,null,null,null,null,null,null,null,null,null,null,null,null,{"$f":"INDIRECT($A$1&\"!$AR45\")","v":12.6},"18",{"$f":"IF(OFFSET(Juin!AR28,(ROW(AR28)-11),0)=0,NA(),OFFSET(Juin!AR28,(ROW(AR28)-11),0))","v":12.6}]
[null,null,null,null,null,null,null,null,null,null,null,null,null,null,null,null,null,null,null,null,null,null,null,null,null,{"$f":"INDIRECT($A$1&\"!$AR47\")","v":12.6},"19",{"$f":"IF(OFFSET(Juin!AR29,(ROW(AR29)-11),0)=0,NA(),OFFSET(Juin!AR29,(ROW(AR29)-11),0))","v":12.6}]
[null,null,null,null,null,null,null,null,null,null,null,null,null,null,null,null,null,null,null,null,null,null,null,null,null,{"$f":"INDIRECT($A$1&\"!$AR49\")","v":23.8},"20",{"$f":"IF(OFFSET(Juin!AR30,(ROW(AR30)-11),0)=0,NA(),OFFSET(Juin!AR30,(ROW(AR30)-11),0))","v":23.8}]
[null,null,null,null,null,null,null,null,null,null,null,null,null,null,null,null,null,null,null,null,null,null,null,null,null,{"$f":"INDIRECT($A$1&\"!$AR51\")","v":10.8},"21",{"$f":"IF(OFFSET(Juin!AR31,(ROW(AR31)-11),0)=0,NA(),OFFSET(Juin!AR31,(ROW(AR31)-11),0))","v":10.8}]
[null,null,null,null,null,null,null,null,null,null,null,null,null,null,null,null,null,null,null,null,null,null,null,null,null,{"$f":"INDIRECT($A$1&\"!$AR53\")","v":24.1},"22",{"$f":"IF(OFFSET(Juin!AR32,(ROW(AR32)-11),0)=0,NA(),OFFSET(Juin!AR32,(ROW(AR32)-11),0))","v":24.1}]
[null,null,null,null,null,null,null,null,null,null,null,null,null,null,null,null,null,null,null,null,null,null,null,null,null,{"$f":"INDIRECT($A$1&\"!$AR55\")","v":18.399999999999999},"23",{"$f":"IF(OFFSET(Juin!AR33,(ROW(AR33)-11),0)=0,NA(),OFFSET(Juin!AR33,(ROW(AR33)-11),0))","v":18.399999999999999}]
[null,null,null,null,null,null,null,null,null,null,null,null,null,null,null,null,null,null,null,null,null,null,null,null,null,{"$f":"INDIRECT($A$1&\"!$AR57\")","v":18.7},"24",{"$f":"IF(OFFSET(Juin!AR34,(ROW(AR34)-11),0)=0,NA(),OFFSET(Juin!AR34,(ROW(AR34)-11),0))","v":18.7}]
[null,null,null,null,null,null,null,null,null,null,null,null,null,null,null,null,null,null,null,null,null,null,null,null,null,{"$f":"INDIRECT($A$1&\"!$AR59\")","v":16.899999999999999},"25",{"$f":"IF(OFFSET(Juin!AR35,(ROW(AR35)-11),0)=0,NA(),OFFSET(Juin!AR35,(ROW(AR35)-11),0))","v":16.899999999999999}]
[null,null,null,null,null,null,null,null,null,null,null,null,null,null,null,null,null,null,null,null,null,null,null,null,null,{"$f":"INDIRECT($A$1&\"!$AR61\")","v":14.4},"26",{"$f":"IF(OFFSET(Juin!AR36,(ROW(AR36)-11),0)=0,NA(),OFFSET(Juin!AR36,(ROW(AR36)-11),0))","v":14.4}]
[null,null,null,null,null,null,null,null,null,null,null,null,null,null,null,null,null,null,null,null,null,null,null,null,null,{"$f":"INDIRECT($A$1&\"!$AR63\")","v":19},"27",{"$f":"IF(OFFSET(Juin!AR37,(ROW(AR37)-11),0)=0,NA(),OFFSET(Juin!AR37,(ROW(AR37)-11),0))","v":19}]
[null,null,null,null,null,null,null,null,null,null,null,null,null,null,null,null,null,null,null,null,null,null,null,null,null,{"$f":"INDIRECT($A$1&\"!$AR65\")","v":0},"28",{"$f":"IF(OFFSET(Juin!AR38,(ROW(AR38)-11),0)=0,NA(),OFFSET(Juin!AR38,(ROW(AR38)-11),0))","v":{"$error":"#N/A"}}]
[null,null,null,null,null,null,null,null,null,null,null,null,null,null,null,null,null,null,null,null,null,null,null,null,null,{"$f":"INDIRECT($A$1&\"!$AR67\")","v":0},"29",{"$f":"IF(OFFSET(Juin!AR39,(ROW(AR39)-11),0)=0,NA(),OFFSET(Juin!AR39,(ROW(AR39)-11),0))","v":{"$error":"#N/A"}}]
[null,null,null,null,null,null,null,null,null,null,null,null,null,null,null,null,null,null,null,null,null,null,null,null,null,{"$f":"INDIRECT($A$1&\"!$AR71\")","v":0},"30",{"$f":"IF(OFFSET(Juin!AR40,(ROW(AR40)-11),0)=0,NA(),OFFSET(Juin!AR40,(ROW(AR40)-11),0))","v":{"$error":"#N/A"}}]
[null,null,null,null,null,null,null,null,null,null,null,null,null,null,null,null,null,null,null,null,null,null,null,null,null,{"$f":"INDIRECT($A$1&\"!$AR69\")","v":0},"31",{"$f":"IF(OFFSET(Juin!AR41,(ROW(AR41)-11),0)=0,NA(),OFFSET(Juin!AR41,(ROW(AR41)-11),0))","v":{"$error":"#N/A"}}]
[null,null,null,null,null,null,null,null,null,null,null,null,null,null,null,null,null,null,null,null,null,null,null,null,null,{"$f":"MAX(Z6:Z36)","v":24.5}]
[]
[]
[]
[]
[]
[]
[]
[]
[]
[]
[]
[]
[]
[]
[null,"_","_","_","_","_","_","_","_"]

{"sheet":"Juin","index":1,"n_rows":63,"n_cols":44,"rows_kept":63,"cut":false,"hidden":false,"merged":[]}
[]
[]
[]
[]
[null,null,"Juin"]
[]
[]
[]
[]
[]
[null,null,null,null,null,null,null,null,null,null,null,null,null,null,null,null,null,null,null,null,null,null,null,null,null,null,null,null,null,null,null,null,null,null,null,null,null,null,null,null,null,null,null,14.4]
[]
[null,null,null,null,null,null,null,null,null,null,null,null,null,null,null,null,null,null,null,null,null,null,null,null,null,null,null,null,null,null,null,null,null,null,null,null,null,null,null,null,null,null,null,14]
[]
[null,null,null,null,null,null,null,null,null,null,null,null,null,null,null,null,null,null,null,null,null,null,null,null,null,null,null,null,null,null,null,null,null,null,null,null,null,null,null,null,null,null,null,7.2]
[]
[null,null,null,null,null,null,null,null,null,null,null,null,null,null,null,null,null,null,null,null,null,null,null,null,null,null,null,null,null,null,null,null,null,null,null,null,null,null,null,null,null,null,null,9.6999999999999993]
[]
[null,null,null,null,null,null,null,null,null,null,null,null,null,null,null,null,null,null,null,null,null,null,null,null,null,null,null,null,null,null,null,null,null,null,null,null,null,null,null,null,null,null,null,9]
[]
[null,null,null,null,null,null,null,null,null,null,null,null,null,null,null,null,null,null,null,null,null,null,null,null,null,null,null,null,null,null,null,null,null,null,null,null,null,null,null,null,null,null,null,14.8]
[]
[null,null,null,null,null,null,null,null,null,null,null,null,null,null,null,null,null,null,null,null,null,null,null,null,null,null,null,null,null,null,null,null,null,null,null,null,null,null,null,null,null,null,null,13.3]
[]
[null,null,null,null,null,null,null,null,null,null,null,null,null,null,null,null,null,null,null,null,null,null,null,null,null,null,null,null,null,null,null,null,null,null,null,null,null,null,null,null,null,null,null,9]
[]
[null,null,null,null,null,null,null,null,null,null,null,null,null,null,null,null,null,null,null,null,null,null,null,null,null,null,null,null,null,null,null,null,null,null,null,null,null,null,null,null,null,null,null,10.8]
[]
[null,null,null,null,null,null,null,null,null,null,null,null,null,null,null,null,null,null,null,null,null,null,null,null,null,null,null,null,null,null,null,null,null,null,null,null,null,null,null,null,null,null,null,15.1]
[]
[null,null,null,null,null,null,null,null,null,null,null,null,null,null,null,null,null,null,null,null,null,null,null,null,null,null,null,null,null,null,null,null,null,null,null,null,null,null,null,null,null,null,null,19.100000000000001]
[]
[null,null,null,null,null,null,null,null,null,null,null,null,null,null,null,null,null,null,null,null,null,null,null,null,null,null,null,null,null,null,null,null,null,null,null,null,null,null,null,null,null,null,null,24.5]
[]
[null,null,null,null,null,null,null,null,null,null,null,null,null,null,null,null,null,null,null,null,null,null,null,null,null,null,null,null,null,null,null,null,null,null,null,null,null,null,null,null,null,null,null,21.6]
[]
[null,null,null,null,null,null,null,null,null,null,null,null,null,null,null,null,null,null,null,null,null,null,null,null,null,null,null,null,null,null,null,null,null,null,null,null,null,null,null,null,null,null,null,21.2]
[]
[null,null,null,null,null,null,null,null,null,null,null,null,null,null,null,null,null,null,null,null,null,null,null,null,null,null,null,null,null,null,null,null,null,null,null,null,null,null,null,null,null,null,null,21.6]
[]
[null,null,null,null,null,null,null,null,null,null,null,null,null,null,null,null,null,null,null,null,null,null,null,null,null,null,null,null,null,null,null,null,null,null,null,null,null,null,null,null,null,null,null,18.399999999999999]
[]
[null,null,null,null,null,null,null,null,null,null,null,null,null,null,null,null,null,null,null,null,null,null,null,null,null,null,null,null,null,null,null,null,null,null,null,null,null,null,null,null,null,null,null,20.5]
[]
[null,null,null,null,null,null,null,null,null,null,null,null,null,null,null,null,null,null,null,null,null,null,null,null,null,null,null,null,null,null,null,null,null,null,null,null,null,null,null,null,null,null,null,12.6]
[]
[null,null,null,null,null,null,null,null,null,null,null,null,null,null,null,null,null,null,null,null,null,null,null,null,null,null,null,null,null,null,null,null,null,null,null,null,null,null,null,null,null,null,null,12.6]
[]
[null,null,null,null,null,null,null,null,null,null,null,null,null,null,null,null,null,null,null,null,null,null,null,null,null,null,null,null,null,null,null,null,null,null,null,null,null,null,null,null,null,null,null,23.8]
[]
[null,null,null,null,null,null,null,null,null,null,null,null,null,null,null,null,null,null,null,null,null,null,null,null,null,null,null,null,null,null,null,null,null,null,null,null,null,null,null,null,null,null,null,10.8]
[]
[null,null,null,null,null,null,null,null,null,null,null,null,null,null,null,null,null,null,null,null,null,null,null,null,null,null,null,null,null,null,null,null,null,null,null,null,null,null,null,null,null,null,null,24.1]
[]
[null,null,null,null,null,null,null,null,null,null,null,null,null,null,null,null,null,null,null,null,null,null,null,null,null,null,null,null,null,null,null,null,null,null,null,null,null,null,null,null,null,null,null,18.399999999999999]
[]
[null,null,null,null,null,null,null,null,null,null,null,null,null,null,null,null,null,null,null,null,null,null,null,null,null,null,null,null,null,null,null,null,null,null,null,null,null,null,null,null,null,null,null,18.7]
[]
[null,null,null,null,null,null,null,null,null,null,null,null,null,null,null,null,null,null,null,null,null,null,null,null,null,null,null,null,null,null,null,null,null,null,null,null,null,null,null,null,null,null,null,16.899999999999999]
[]
[null,null,null,null,null,null,null,null,null,null,null,null,null,null,null,null,null,null,null,null,null,null,null,null,null,null,null,null,null,null,null,null,null,null,null,null,null,null,null,null,null,null,null,14.4]
[]
[null,null,null,null,null,null,null,null,null,null,null,null,null,null,null,null,null,null,null,null,null,null,null,null,null,null,null,null,null,null,null,null,null,null,null,null,null,null,null,null,null,null,null,19]